Cogmind - Beta 13 @@@ ROGUE MODE // 2024.04.03 @ 08:16:54 Player: Scringis Result: Self-destructed Performance ------------- Evolutions (2) 1000 Regions Visited (5) 1000 Robots Destroyed (34) 170 Value Destroyed (1103) 1103 Prototype IDs (6) 120 Alien Tech Used (0) 0 Bonus (381) 381 TOTAL SCORE: 3774 Bonus ------- Follower Combat Kills 81 Aligned with FarCom 300 Cogmind --------- Core Integrity 342/550 Matter 300/300 Energy 1/100 System Corruption 2% Temperature Cool (6) Movement Walking (120) Location -8/Materials Parts ------- > --- POWER (2) -------- (None) > --- PROPULSION (2) --- Improved Carbon-fiber Leg Improved Carbon-fiber Leg > --- UTILITY (5) ------ Advanced Heat Sink Medium Storage Unit Improved Targeting Computer Improved Shield Generator Hacking Suite > --- WEAPON (2) ------- Heavy EM Shotgun Advanced EMP Blaster > --- INVENTORY (10) --- Improved Carbon-fiber Leg Particle Charger Cloak of Protection EM Pulse Cannon Heavy Assault Rifle Grenade Launcher Rocket Launcher Improved Grenade Launcher Datajack Katana Peak State ------------ > --- POWER ------------ Light Angular Momentum Engine > --- PROPULSION ------- Improved Carbon-fiber Leg Improved Carbon-fiber Leg > --- UTILITY ---------- Advanced Heat Sink Medium Storage Unit Improved Targeting Computer Improved Shield Generator Hacking Suite > --- WEAPON ----------- Heavy EM Shotgun Heavy EM Shotgun > --- INVENTORY -------- Improved Carbon-fiber Leg Improved Targeting Computer Particle Charger Cloak of Protection EM Pulse Cannon Grenade Launcher Rocket Launcher Improved Grenade Launcher Datajack Katana [Rating: 39] Favorites ----------- Power Light Ion Engine Engine Light Ion Engine Power Core Light Nuclear Core Propulsion Light Treads Treads Light Treads Leg Improved Carbon-fiber Leg Utility Hacking Suite Device Sensor Array Storage Small Storage Unit Processor Improved Targeting Computer Hackware Hacking Suite Protection Improved Light Armor Plating Weapon Medium Laser Energy Gun Medium Laser Energy Cannon EM Pulse Cannon Ballistic Gun Heavy Assault Rifle Launcher Advanced EMP Blaster Slashing Weapon Katana Special Melee Weapon Datajack Build | -11 -10 -10 -10 -9 -8 ------- Run | Yrd Mat Min Exi Min Mat Slots Evolved 4 | . . . . . 4 Power 1 | . . . . . 1 Propulsion . | . . . . . . Utility 3 | . . . . . 3 Weapon . | . . . . . . Parts Attached 41 | 6 1 1 6 2 25 Power 6 | 1 . 1 . . 4 Engine 4 | 1 . . . . 3 Core 2 | . . 1 . . 1 Reactor . | . . . . . . Propulsion 7 | 2 . . . 2 3 Treads 4 | 2 . . . 2 . Leg 3 | . . . . . 3 Wheel . | . . . . . . Hover . | . . . . . . Flight . | . . . . . . Utility 12 | 1 1 . 3 . 7 Device 6 | . 1 . 2 . 3 Storage 2 | 1 . . . . 1 Processor 2 | . . . . . 2 Hackware 1 | . . . 1 . . Protection 1 | . . . . . 1 Artifact . | . . . . . . Weapon 16 | 2 . . 3 . 11 Energy Gun 10 | 2 . . 2 . 6 Energy Cannon 1 | . . . . . 1 Ballistic Gun 1 | . . . . . 1 Ballistic Cannon . | . . . . . . Launcher 1 | . . . . . 1 Special Weapon . | . . . . . . Impact Weapon . | . . . . . . Slashing Weapon 2 | . . . . . 2 Piercing Weapon . | . . . . . . Special Melee Weapon 1 | . . . 1 . . Unidentified Prototypes 4 | . . . 2 . 2 Parts Lost 8 | . . . . . 8 Power 3 | . . . . . 3 Propulsion 2 | . . . . . 2 Utility 1 | . . . . . 1 Weapon 2 | . . . . . 2 Highest Loss Streak 2 | . . . . . 2 To Critical Strikes . | . . . . . . Average Slot Usage (%) 91 | . 99 100 98 100 80 Engine 8 | . 14 10 . . 8 Core 5 | . . 3 14 14 4 Treads 18 | . 28 28 28 28 5 Leg 2 | . . . . . 4 Device 12 | . 13 14 11 14 10 Storage 10 | . 14 14 6 . 9 Processor 4 | . . . . . 10 Hackware 5 | . . . 9 14 9 Energy Gun 22 | . 28 28 26 28 14 Naked Turns . | . . . . . . Heaviest Build 43 | 12 13 15 17 17 43 Greatest Support 40 | 40 40 40 40 40 40 Greatest Overweight (x) 8 | . . . . . 8 Average Overweight (x) . | . . . . . 1 Largest Inventory Capacity 10 | 8 8 8 8 5 10 Average Capacity 8 | 7 8 8 6 5 10 Most Carried 10 | 4 8 8 8 5 10 Average Carried 6 | . 6 7 5 4 7 Final Capacity 10 | 8 8 8 5 5 10 Final Carried 10 | 1 8 7 5 5 10 Class Distribution -------------------- 70% | Mutant 29% | Scavenger-Mutant Dominant Class ---------------- Mutant | -10/Materials Mutant | -10/Mines Mutant | -10/Exiles Scavenger-Mutant | -9/Mines Scavenger-Mutant | -8/Materials Resources | -11 -10 -10 -10 -9 -8 ----------- Run | Yrd Mat Min Exi Min Mat Matter Collected 618 | 190 80 10 . . 338 Remotely . | . . . . . . Salvage Created 1507 | . 368 155 . . 984 Parts 70 | . 21 6 . . 43 Haulers Intercepted 2 | . . . . . 2 Recyclers Shooed . | . . . . . . Parts Field Recycled . | . . . . . . Retrieved Matter . | . . . . . . Parts Self-Destructed . | . . . . . . Prevented . | . . . . . . Kills | -11 -10 -10 -10 -9 -8 ------- Run | Yrd Mat Min Exi Min Mat Combat Hostiles Destroyed 26 | . 8 2 . . 16 Melee 3 | . . . . . 3 Guns 19 | . 8 2 . . 9 AOE 3 | . . . . . 3 Classes Destroyed 9 | . 5 . . . 4 Builder 1 | . . . . . 1 Hauler 2 | . . . . . 2 Recycler 2 | . 1 1 . . . Operator 2 | . 2 . . . . Watcher 1 | . 1 . . . . Swarmer 3 | . 3 . . . . Grunt 15 | . 5 2 . . 8 Duelist 2 | . . . . . 2 Sentry 6 | . . . . . 6 Best Kill Streak 4 | . 4 2 . . 3 Combat Bots Only 4 | . 4 2 . . 3 Max Kills in Single Turn 2 | . 1 1 . . 2 Gunslinging . | . . . . . . Exploded 1 | . . . . . 1 Melee 1 | . . . . . 1 Uniques/NPCs Destroyed . | . . . . . . Combat | -11 -10 -10 -10 -9 -8 -------- Run | Yrd Mat Min Exi Min Mat Hostile Shots Fired 172 | . 32 3 . 9 128 Missed 53 | . 6 1 . 3 43 Damage Taken 1802 | . 272 24 . 47 1459 Core 238 | . 30 . . . 208 Absorbed by Shields 73 | . . . . . 73 Regen/Repaired (Parts) 31 | . . . . . 31 Core Remaining (%) 94 | 100 . . . 88 . Volleys Fired 102 | . 28 7 . . 67 Largest 2 | . 2 2 . . 2 Hottest 115 | . 100 100 . . 115 Shots Fired 177 | . 56 14 . . 107 Gun 168 | . 56 14 . . 98 Cannon 8 | . . . . . 8 Launcher 1 | . . . . . 1 Special . | . . . . . . Kinetic 14 | . . . . . 14 Thermal 103 | . 56 14 . . 33 Explosive . | . . . . . . Electromagnetic 60 | . . . . . 60 Robot Hit Streak 13 | . 13 9 . . 12 Robot Miss Streak 4 | . 4 1 . . 4 Penetration Max . | . . . . . . Secondary Targets 1 | . . . . . 1 Max Gunslinging Chain 1 | . . . . . 1 Shots Hit Robots 138 | . 40 11 . . 87 Core Hits 64 | . 20 7 . . 37 Critical Kills . | . . . . . . Critical Parts Destroyed . | . . . . . . Critical Strikes 9 | . 5 2 . . 2 Burn 9 | . 5 2 . . 2 Melee Attacks 9 | . . . . . 9 Impact . | . . . . . . Slashing 9 | . . . . . 9 Piercing . | . . . . . . Sneak Attacks . | . . . . . . Combat Hostiles . | . . . . . . Follow-up Attacks . | . . . . . . Damage Inflicted 2605 | . 508 121 . 16 1960 Guns 1816 | . 500 110 . . 1206 Cannons 158 | . . . . . 158 Explosions 481 | . . . . . 481 Melee 99 | . . . . . 99 Ramming 51 | . 8 11 . 16 16 Kinetic 107 | . . . . . 107 Thermal 1410 | . 500 110 . . 800 Explosive . | . . . . . . Electromagnetic 938 | . . . . . 938 Impact . | . . . . . . Slashing 99 | . . . . . 99 Piercing . | . . . . . . Highest Corruption 2 | . . . . . 2 Average Corruption 2 | . . . . . 2 Corruption Purged . | . . . . . . Corruption Blocked . | . . . . . . Effects 9 | . . . . . 9 Message Errors 3 | . . . . . 3 Matter Fused 2 | . . . . . 2 Heat Flow Errors 1 | . . . . . 1 Parts Rejected 1 | . . . . . 1 Data Loss (minor) 2 | . . . . . 2 Overload Shots . | . . . . . . Overflow Damage 42 | . . . . . 42 Projectiles . | . . . . . . Explosions 42 | . . . . . 42 Melee . | . . . . . . Knockbacks . | . . . . . . Impact . | . . . . . . Kinetic . | . . . . . . Secondary . | . . . . . . Self-Inflicted Damage 121 | . . . . . 121 Shots 4 | . . . . . 4 Rammed 14 | . 4 4 . 4 2 Targets Rammed 15 | . 4 4 . 4 3 Kicked 1 | . . . . . 1 Crushed . | . . . . . . Highest Temperature 455 | . 231 171 . . 455 Average Temperature 120 | . 78 60 . . 176 Received Heat Transfer 765 | . 114 15 . . 636 Effects 7 | . 1 . . . 6 Shutdowns 5 | . . . . . 5 Energy Bleed 1 | . 1 . . . . Damage (minor) 1 | . . . . . 1 Siege Activations . | . . . . . . Robots Corrupted . | . . . . . . Combat Hostiles . | . . . . . . Parts Fried 4 | . . . . . 4 Impact Corruptions . | . . . . . . Robots Melted 1 | . . . . . 1 Combat Hostiles 1 | . . . . . 1 Parts Melted 9 | . 6 1 . . 2 Heat Transferred 3878 | . 1850 481 . . 1547 Parts Sabotaged . | . . . . . . Parts Stolen . | . . . . . . Parts Stripped . | . . . . . . Power Chain Reactions 5 | . . . . . 5 Alert | -11 -10 -10 -10 -9 -8 ------- Run | Yrd Mat Min Exi Min Mat Peak Influence 367 | . 131 113 . . 367 Initial . | . . . . . . Average 51 | . 62 39 . . 60 Maximum Alert Level 1 | . . . . . 1 Low Security (%) 97 | 100 100 100 . 100 94 Level 1 2 | . . . . . 5 Level 2 . | . . . . . . Level 3 . | . . . . . . Level 4 . | . . . . . . Level 5 . | . . . . . . High Security . | . . . . . . Max Security . | . . . . . . Squads Dispatched 6 | . 4 . . . 2 Investigation 1 | . 1 . . . . Extermination . | . . . . . . Reinforcement 4 | . 3 . . . 1 Assault . | . . . . . . Garrison 1 | . . . . . 1 Intercept . | . . . . . . Searches Triggered . | . . . . . . Construction Impeded . | . . . . . . Haulers Reinforced . | . . . . . . Active Scanning Responses . | . . . . . . Cargo Convoy Interrupts . | . . . . . . Stealth | -11 -10 -10 -10 -9 -8 --------- Run | Yrd Mat Min Exi Min Mat Distress Signals 8 | . 2 . . . 6 Communications Jammed . | . . . . . . Distress Signals . | . . . . . . Times Spotted 53 | . 12 2 . 4 35 Peak Tracking Total 5 | . 3 1 . 4 5 Tactical Retreats 5 | . . . . . 5 Traps | -11 -10 -10 -10 -9 -8 ------- Run | Yrd Mat Min Exi Min Mat Traps Triggered 1 | . 1 . . . . Indirectly . | . . . . . . Trap Hack Attempts . | . . . . . . Triggered . | . . . . . . Disarmed . | . . . . . . Reprogrammed . | . . . . . . Reused . | . . . . . . Traps Extracted . | . . . . . . Installed . | . . . . . . Triggered . | . . . . . . Machines | -11 -10 -10 -10 -9 -8 ---------- Run | Yrd Mat Min Exi Min Mat Machines Disabled 1 | . . . . . 1 Max in Single Turn 1 | . . . . . 1 Machines Repaired . | . . . . . . Machines Dismantled . | . . . . . . Machines Sabotaged . | . . . . . . Overloaded Fab Kills . | . . . . . . Hacking | -11 -10 -10 -10 -9 -8 --------- Run | Yrd Mat Min Exi Min Mat Machines Accessed 8 | . 3 . 1 . 4 Terminals 4 | . 3 . . . 1 Fabricators . | . . . . . . Repair Stations 1 | . . . . . 1 Recycling Units 1 | . . . . . 1 Scanalyzers . | . . . . . . Garrison Access 1 | . . . . . 1 Total Hacks 43 | . 9 . 23 . 11 Successful 34 | . 3 . 23 . 8 Failed 9 | . 6 . . . 3 Catastrophic 1 | . 1 . . . . Database Lockouts . | . . . . . . Manual 1 | . . . 1 . . Terminals 14 | . 9 . . . 5 Fabricators . | . . . . . . Repair Stations 4 | . . . . . 4 Recycling Units 1 | . . . . . 1 Scanalyzers . | . . . . . . Garrison Access 1 | . . . . . 1 Terminal Hacks 28 | . 3 . 23 . 2 Record 23 | . . . 23 . . Prototype ID Bank 1 | . . . . . 1 Transport Status 1 | . 1 . . . . Hauler Manifests 1 | . 1 . . . . Zone Layout 2 | . 1 . . . 1 Fabricator Hacks . | . . . . . . Repair Station Hacks 4 | . . . . . 4 Scan Component 2 | . . . . . 2 Repair 2 | . . . . . 2 Recycling Unit Hacks 1 | . . . . . 1 Report Inventory 1 | . . . . . 1 Scanalyzer . | . . . . . . Garrison Access Hacks 1 | . . . . . 1 Coupler Status 1 | . . . . . 1 Unauthorized Hacks . | . . . . . . Terminals . | . . . . . . Fabricators . | . . . . . . Repair Stations . | . . . . . . Recycling Units . | . . . . . . Scanalyzers . | . . . . . . Garrison Access . | . . . . . . Data Cores Recovered 1 | . 1 . . . . Used . | . . . . . . Hacking Detections 3 | . 2 . . . 1 Full Trace Events 1 | . 1 . . . . Feedback Events . | . . . . . . Feedback Blocked . | . . . . . . Robot Schematics Acquired . | . . . . . . Robots Built . | . . . . . . Authchips . | . . . . . . Time . | . . . . . . Total Robot Build Rating . | . . . . . . Part Schematics Acquired . | . . . . . . Parts Built . | . . . . . . Authchips . | . . . . . . Time . | . . . . . . Total Part Build Rating . | . . . . . . Parts Repaired 2 | . . . . . 2 Time 76 | . . . . . 76 Parts Recycled . | . . . . . . Recycled Matter . | . . . . . . Retrieved Matter . | . . . . . . Retrieved Components . | . . . . . . Parts Scanalyzed . | . . . . . . Part Schematics Acquired . | . . . . . . Parts Damaged . | . . . . . . Bothacking | -11 -10 -10 -10 -9 -8 ------------ Run | Yrd Mat Min Exi Min Mat Used RIF Installer . | . . . . . . Robots Hacked . | . . . . . . Non-combat . | . . . . . . Combat . | . . . . . . Robot Hacks Applied . | . . . . . . Relay Couplers Released . | . . . . . . Fabnet Peak Effective % . | . . . . . . Robots Rewired . | . . . . . . Allies Hacked . | . . . . . . Hacks Repelled . | . . . . . . Allies | -11 -10 -10 -10 -9 -8 -------- Run | Yrd Mat Min Exi Min Mat Total Allies 3 | . . 3 . . . Largest Group 3 | . . 3 1 1 . Highest-Rated Group 40 | . . 40 16 16 . Highest-Rated Ally 16 | . . 16 16 16 . Total Orders . | . . . . . . Ally Attacks 32 | . . 31 . 1 . Total Damage 352 | . . 352 . . . Kills 5 | . . 5 . . . Allies Corrupted . | . . . . . . Allies Melted . | . . . . . . Intel | -11 -10 -10 -10 -9 -8 ------- Run | Yrd Mat Min Exi Min Mat Robot Analysis Total . | . . . . . . Derelict Logs Recovered 1 | . . 1 . . . Drone Launches . | . . . . . . Drone Recoveries . | . . . . . . Exploration | -11 -10 -10 -10 -9 -8 ------------- Run | Yrd Mat Min Exi Min Mat Turns Passed 4972 | 142 1268 688 571 305 1998 Spaces Moved 2372 | 91 718 386 345 171 661 Core 102 | 15 . . . . 87 Treads 2016 | 76 718 386 345 171 320 Legs 254 | . . . . . 254 Wheels . | . . . . . . Hover . | . . . . . . Flight . | . . . . . . Fastest Speed 50 | 50 160 160 160 160 120 Average Speed 173 | 141 160 160 160 160 210 Slowest Speed 450 | 160 160 160 160 160 450 Overloaded Moves . | . . . . . . Propulsion Burnouts . | . . . . . . Robots Hopped . | . . . . . . Cave-ins Triggered . | . . . . . . Exploration Rate (%) 49 | 5 91 71 62 28 41 Regions Visited 5 Branch Regions 3 Pre-discovered Areas 2 | . . . 1 1 . Known Exits Taken . | . . . . . . Unknown Exits Taken 5 | 1 1 1 1 1 . Scrap Searched 1 | . . 1 . . . Spaces Dug . | . . . . . . Terrain Destroyed 52 | . . . . . 52 Melee . | . . . . . . Projectile . | . . . . . . AOE 52 | . . . . . 52 Terrain Rammed . | . . . . . . Walls Destroyed . | . . . . . . Machines Disabled . | . . . . . . Actions | -11 -10 -10 -10 -9 -8 --------- Run | Yrd Mat Min Exi Min Mat Total 3035 | 105 779 441 368 201 1141 Wait 419 | . 21 41 1 19 337 Move 2367 | 90 717 385 344 170 661 Hop . | . . . . . . Pick Up 56 | 8 8 1 8 3 28 Fast Attach . | . . . . . . Attach 34 | 6 1 1 5 1 20 Detach 4 | . . . 2 . 2 Swap 7 | . . . 1 1 5 Drop 22 | 1 . 2 7 3 9 Fire 102 | . 28 7 . . 67 Melee 9 | . . . . . 9 Ram 2 | . . . . . 2 Kick 1 | . . . . . 1 Crush 12 | . 4 4 . 4 . Escape Stasis . | . . . . . . Rewire . | . . . . . . Trap . | . . . . . . Miscellaneous . | . . . . . . Route ------- -11/Scrapyard -10/Materials (discovered 4 exits: [*Mat x3] / [*Min]) -10/Mines (discovered 3 exits: [*Mat x2] / *Exi) -10/Exiles -9/Mines (discovered 2 exits: *Mat x2) -8/Materials History --------- Turn | Location | Event 7 | -11/Scrapyard | Discovered new exit (range 16) 143 | -11/Scrapyard | Entered Materials 316 | -10/Materials | Build established: Mutant 584 | -10/Materials | Discovered new exit (range 8) 843 | -10/Materials | Discovered new exit (range 14) 968 | -10/Materials | Discovered new exit (range 13) 1384 | -10/Materials | Discovered new exit (range 16) 1411 | -10/Materials | Entered Mines 1413 | -10/Mines | Met a Derelict bent on vengeance 1421 | -10/Mines | Assisted by bots powering up and referring to "LRC-V3" 1891 | -10/Mines | Learned Materials security intel 1980 | -10/Mines | Discovered new exit (range 14) 2054 | -10/Mines | Discovered new exit (range 6) 2088 | -10/Mines | Deemed a non-threat by the Exiles lab entrance 2089 | -10/Mines | Discovered new exit (range 5) 2099 | -10/Mines | Entered Exiles 2099 | -10/Exiles | Accompanied by 1 ally 2155 | -10/Exiles | Met 8R-AWN 2191 | -10/Exiles | Met EX-HEX 2264 | -10/Exiles | Met EX-BIN 2291 | -10/Exiles | Aligned with FarCom system 2293 | -10/Exiles | Given EX-Vault access code 2362 | -10/Exiles | Opened EX-Vault 2372 | -10/Exiles | Found Prototype Device 2373 | -10/Exiles | Identified Trap Reconfigurator 2380 | -10/Exiles | Found Prototype Device 2381 | -10/Exiles | Identified Cloak of Protection 2444 | -10/Exiles | Warned to stay clear of 0b10 Research branches 2505 | -10/Exiles | Met EX-DEC 2524 | -10/Exiles | Learned location of Zion (-7) 2647 | -10/Exiles | Discovered new exit (range 11) 2670 | -10/Exiles | Left Exiles lab with Cloak of Protection 2670 | -10/Exiles | Entered Mines 2670 | -9/Mines | Accompanied by 1 ally 2672 | -9/Mines | Joined a pair of Derelicts in attacking an 0b10 outpost 2789 | -9/Mines | Discovered new exit (range 4) 2790 | -9/Mines | Learned location of Storage (-9) 2964 | -9/Mines | Discovered new exit (range 7) 2975 | -9/Mines | Entered Materials 2975 | -8/Materials | Evolved 4 slots: Power x1, Utility x3 2997 | -8/Materials | Build established: Scavenger-Mutant 3987 | -8/Materials | Build established: Mutant 4258 | -8/Materials | Repaired Deuterium Engine 4296 | -8/Materials | Repaired Shock Rifle 4527 | -8/Materials | Build established: Scavenger-Mutant 4792 | -8/Materials | Garrison activated, responded to threat 4973 | -8/Materials | Self-destructed Last Messages --------------- Relay Coupler [Brawler] (18) Relay Coupler [Cutter] (19) Relay Coupler [Grunt] (20) U-05 Engineer builds a Wall. R-06 Scavenger collects Imp. VTOL Module. R-06 Scavenger collects Corrupted Lgt. Treads. W-25 Informer sends out distress signal. R-06 Scavenger collects Lgt. Armor Plating. R-06 Scavenger collects Aluminum Leg. R-06 Scavenger collects Hvy. Assault Rifle. G-47 Trooper misfires. MY/ TDA5HV8 #W/&|ASYW| ALERT: Hostiles spotted, dispatching reinforcements to Terminal M007. W-25 Informer sends out distress signal. R-06 Scavenger inserts Imp. VTOL Module into recycling unit. W-25 Informer sends out distress signal. 0U3U>N8U&KN 7Z=LN2 HHJSR1W G-47 Trooper misfires. Map ----- +----------------------------------------------------+ | ?????????????????????????????????????????????????? | | ?????????????????????????????????????????????????? | | ?????????????????????????????????????????????????? | | ?????????????????????????????????????????????????? | | ?????????????????????????????????????????????????? | | ?????????????????????????????????????????????????? | | ?????????????????????????????????????????????????? | | ?????????????????????????????????????????????????? | | ?????????????????????????????????????????????????? | | ?????????????????????????????????????????????????? | | ????????????????????????????????????? ?????????? | | ?????????????????????????? ##???????# #???????? | | ?????????????????????????? ??????? #???????? | | ?????????????????????????? ???????? #???????? | | ?????????????????????????? ?????? #???????? | | ?????????????????????????? ?????? #???????? | | ?????????????????????????? ??????? #???????? | | ?????????????????????????? ???????? #???????? | | #????????????????????????# #????????# #???????? | | #?########???????????????# #???#????#w +????#### | | #?#! //= #???????????????# #???# ???# ###### | | ??#!!//= #########???????#k#?###+#### | | ??# = # # ####### #?#! # | | ### ### #?# """ # """ | | =%! [ #??# #?# """ # """ "G" | | [ % #??# @ ### """ / """ " " | | ! #??# g/ """ # """ | | ### ######## #??# ### # | | ??# #??????# #??# #####g#### | | #?# #??????### ###??# + g + """ """ | | #?# #????????# #????# #### # """ """ | | #?# #????????# #????# ????! # """ """ # | | #?# ########## #????# ?????? "Y"%+ w # | | #?# # # #????# ????? """ #= # | | #?# # # #????#??????####### # | | #?# # # ######+#???????# =%== + | | #?# # # # #???????# ###""""##### # | | #?# # + # #??###### ""% #??##### | | ### # """ # # [ #?## # #" "![ #??????# | | # # """ # + ! #######" " #??????# | | # # """ # # %+ %[ " !#??????? | | # # # # !=#######" [" #??????? | | /# ##########! =########??# ##"""" #??????? | | # ########## %[#?????????##### ##""""""##??????? | | " # ## #! #?????????????#??#### ###???????? | | ### ##""" # #???????????????????##??????????? | | ### ##""" + #???????????????????????????????? | | # #????????# #???????????????????????????????? | | # #????????# #???????????????????????????????? | | / + #???????## ##??????????????????????????????? | +----------------------------------------------------+ Best States ------------- Heat Dissipation 50 Energy Generation 27 Energy Capacity 415 Matter Stores 300 Matter Capacity 300 Sight Range 18 Robot Scan Range 14 Terrain Scan Density 10 Cloak Strength 5 Armor Coverage 150 Evasion (%) 55 Targeting Accuracy 6 Recoil Reduction 2 Offensive Hacking 10 Item Schematics ----------------- None Robot Schematics ------------------ None Fabricated ------------ Nothing Alien Tech Used ----------------- None Achievements -------------- None Challenges ------------ None Game ------ Seed PoweredSwordSlayer Manual? 0 Play Time 00:24:38 Cumulative 9.5 hours Start 2024.04.03 @ 07:41:22 End 2024.04.03 @ 08:16:54 Sessions 1 Manual Loads 0 Difficulty Rogue Special Mode None Game No. 31 Rogue 31 Adventurer 0 Explorer 0 Win Type - Total 0 Types 0/0/0/0/0/0/0/0/0 Lore% 15 Gallery% 14 Achievement% 14 Wizard Run 0 Options --------- Layout 1 ASCII 0 Keyboard 0 Movement Arrows Keybinds 0 Fullscreen 1 Font 24/Smallcaps Map View 50x35 Zoom Use 0% Tactical HUD 0 Map Filters NONE Filters NONE Steam 1 RUN: 9f85aef0-0242-4b35-b29a-3479505fced5